[Event "2. Itzehoer Schach Open"]
[Site "Itzehoe, Germany"]
[Date "2023.04.29"]
[Round "1.14"]
[White "Helms, Finn"]
[Black "Axt, Christian"]
[Result "1-0"]
[TimeControl "90 min / 40 Züge + 30 min + 30 Sek pro Zug"]
[WhiteElo "2002"]
[BlackElo "1728"]

1. e4 {[%clk 01:30:57]} {[%emt 00:00:02]} e5 {[%clk 01:30:50]} {[%emt
00:00:11]} 2. Nf3 {[%clk 01:31:22]} {[%emt 00:00:05]} f5 {[%clk 01:31:05]}
{[%emt 00:00:14]} 3. Nxe5 {[%clk 01:16:58]} {[%emt 00:14:54]} Qf6 {[%clk
01:31:26]} {[%emt 00:00:09]} 4. d4 {[%clk 01:15:54]} {[%emt 00:01:34]} d6
{[%clk 01:31:49]} {[%emt 00:00:08]} 5. Nc4 {[%clk 01:13:53]} {[%emt 00:02:30]}
fxe4 {[%clk 01:32:05]} {[%emt 00:00:13]} 6. Nc3 {[%clk 01:12:24]} {[%emt
00:02:00]} Qg6 {[%clk 01:29:40]} {[%emt 00:02:55]} 7. f3 {[%clk 01:06:24]}
{[%emt 00:06:31]} Nf6 {[%clk 01:22:54]} {[%emt 00:07:16]} 8. fxe4 {[%clk
01:03:03]} {[%emt 00:03:52]} Be7 {[%clk 01:20:09]} {[%emt 00:03:14]} 9. e5
{[%clk 00:59:41]} {[%emt 00:03:53]} Ng4 {[%clk 01:04:31]} {[%emt 00:16:07]} 10.
Bd3 {[%clk 00:47:36]} {[%emt 00:12:36]} Bf5 {[%clk 01:03:15]} {[%emt 00:01:44]}
11. Nd5 {[%clk 00:44:57]} {[%emt 00:03:09]} Bxd3 {[%clk 00:50:55]} {[%emt
00:12:50]} 12. Qxd3 {[%clk 00:37:18]} {[%emt 00:08:10]} Qxd3 {[%clk 00:45:06]}
{[%emt 00:06:19]} 13. cxd3 {[%clk 00:37:23]} {[%emt 00:00:25]} Na6 {[%clk
00:42:32]} {[%emt 00:03:04]} 14. Bf4 {[%clk 00:29:30]} {[%emt 00:08:23]} dxe5
{[%clk 00:38:03]} {[%emt 00:04:59]} 15. Nxe5 {[%clk 00:23:54]} {[%emt
00:06:06]} Nf6 {[%clk 00:33:26]} {[%emt 00:05:07]} 16. Nxe7 {[%clk 00:19:27]}
{[%emt 00:04:57]} Kxe7 {[%clk 00:33:45]} {[%emt 00:00:10]} 17. Kd2 {[%clk
00:19:12]} {[%emt 00:00:46]} Rhe8 {[%clk 00:24:46]} {[%emt 00:09:29]} 18. Rhf1
{[%clk 00:18:05]} {[%emt 00:01:37]} Nb4 {[%clk 00:19:12]} {[%emt 00:06:04]} 19.
Rae1 {[%clk 00:16:47]} {[%emt 00:01:48]} Kf8 {[%clk 00:17:43]} {[%emt
00:01:58]} 20. Bg5 {[%clk 00:16:04]} {[%emt 00:01:14]} Nbd5 {[%clk 00:17:11]}
{[%emt 00:01:02]} 21. Nd7+ {[%clk 00:13:56]} {[%emt 00:02:39]} Kf7 {[%clk
00:16:33]} {[%emt 00:01:06]} 22. Re5 {[%clk 00:14:04]} {[%emt 00:00:23]} Rad8
{[%clk 00:13:27]} {[%emt 00:03:37]} 23. Rxd5 {[%clk 00:13:37]} {[%emt
00:00:57]} 1-0

[Event "2. Itzehoer Schach Open"]
[Site "Itzehoe, Germany"]
[Date "2023.04.29"]
[Round "1.17"]
[White "Retzlaff, Wolfgang"]
[Black "Tarasenko, Nazar"]
[Result "1/2-1/2"]
[TimeControl "90 min / 40 Züge + 30 min + 30 Sek pro Zug"]
[WhiteElo "1704"]
[BlackElo "1970"]

1. c4 {[%emt 00:04:36]} e6 {[%emt 00:00:46]} 2. Nc3 {[%emt 00:00:31]} d5 {[%emt
00:00:14]} 3. cxd5 {[%emt 00:00:49]} exd5 {[%emt 00:00:10]} 4. d4 {[%emt
00:00:06]} Nf6 {[%emt 00:01:11]} 5. Nf3 {[%emt 00:00:15]} c6 {[%emt 00:00:43]}
6. Bg5 {[%emt 00:01:20]} Be7 {[%emt 00:03:39]} 7. e3 {[%emt 00:00:18]} O-O
{[%emt 00:00:22]} 8. Be2 {[%emt 00:00:57]} Be6 {[%emt 00:03:04]} 9. O-O {[%emt
00:00:24]} Nbd7 {[%emt 00:01:32]} 10. Rc1 {[%emt 00:04:10]} Ne4 {[%emt
00:04:11]} 11. Bxe7 {[%emt 00:01:47]} Qxe7 {[%emt 00:00:08]} 12. Qc2 {[%emt
00:00:45]} f5 {[%emt 00:08:57]} 13. Bd3 {[%emt 00:05:07]} Rf6 {[%emt 00:04:13]}
14. Ne2 {[%emt 00:00:29]} h6 {[%emt 00:01:41]} 15. Ne5 {[%emt 00:03:48]} g5
{[%emt 00:03:22]} 16. Nxd7 {[%emt 00:00:51]} Bxd7 {[%emt 00:01:55]} 17. Bxe4
{[%emt 00:00:16]} fxe4 {[%emt 00:01:18]} 18. Ng3 {[%emt 00:02:32]} Be8 {[%emt
00:00:46]} 19. Qe2 {[%emt 00:00:30]} Bg6 {[%emt 00:01:06]} 20. f3 {[%emt
00:05:39]} exf3 {[%emt 00:01:06]} 21. Rxf3 {[%emt 00:00:06]} Re8 {[%emt
00:02:15]} 22. Rxf6 {[%emt 00:04:46]} Qxf6 {[%emt 00:00:14]} 23. Re1 {[%emt
00:00:18]} Qf7 {[%emt 00:01:38]} 24. Qf3 {[%emt 00:03:06]} h5 {[%emt 00:02:13]}
25. Qxf7+ {[%emt 00:00:08]} Kxf7 {[%emt 00:00:09]} 26. Nf1 {[%emt 00:01:45]}
Kf6 {[%emt 00:02:20]} 27. Nd2 {[%emt 00:00:56]} g4 {[%emt 00:00:59]} 28. Kf2
{[%emt 00:02:53]} Kg5 {[%emt 00:01:03]} 29. Ke2 {[%emt 00:00:56]} h4 {[%emt
00:02:59]} 30. Rf1 {[%emt 00:01:21]} Bh5 {[%emt 00:04:53]} 31. g3 {[%emt
00:01:07]} hxg3 {[%emt 00:00:47]} 32. hxg3 {[%emt 00:00:02]} Bg6 {[%emt
00:00:17]} 33. Nb3 {[%emt 00:00:08]} b6 {[%emt 00:02:11]} 34. Kd2 {[%emt
00:02:19]} Rh8 {[%emt 00:00:20]} 35. Nc1 {[%emt 00:02:03]} Rh2+ {[%emt
00:00:58]} 36. Ne2 {[%emt 00:01:40]} Be4 {[%emt 00:01:45]} 37. Ke1 {[%emt
00:00:07]} Bd3 {[%emt 00:05:37]} 38. Rf2 {[%emt 00:00:18]} Rxf2 {[%emt
00:00:20]} 39. Kxf2 {[%emt 00:00:09]} Bxe2 {[%emt 00:00:06]} 40. Kxe2 {[%emt
00:00:02]} Kf5 {[%emt 00:00:19]} 41. Kd3 {[%emt 00:05:04]} a5 {[%emt 00:03:30]}
42. a4 {[%emt 00:01:53]} b5 {[%emt 00:00:20]} 43. b3 {[%emt 00:00:05]} Ke6
{[%emt 00:11:39]} 44. e4 {[%emt 00:12:10]} dxe4+ {[%emt 00:00:12]} 45. Kxe4
{[%emt 00:00:02]} Kd6 {[%emt 00:00:52]} 46. Ke3 {[%emt 00:05:07]} bxa4 {[%emt
00:04:08]} 47. bxa4 {[%emt 00:00:09]} c5 {[%emt 00:00:24]} 48. Kd3 {[%emt
00:00:31]} Kd5 {[%emt 00:00:21]} 49. dxc5 {[%emt 00:00:13]} Kxc5 {[%emt
00:00:03]} 50. Kc3 {[%emt 00:00:09]} 1/2-1/2

[Event "2. Itzehoer Schach Open"]
[Site "Itzehoe, Germany"]
[Date "2023.04.29"]
[Round "1.6"]
[White "Helmer, Jan"]
[Black "Moysich, Dirk"]
[Result "1-0"]
[TimeControl "90 min / 40 Züge + 30 min + 30 Sek pro Zug"]
[WhiteElo "2091"]
[BlackElo "1860"]

1. Nf3 {[%clk 01:30:42]} {[%emt 00:00:17]} d6 {[%clk 01:30:32]} {[%emt
00:00:28]} 2. d4 {[%clk 01:30:31]} {[%emt 00:00:41]} Nf6 {[%clk 01:30:46]}
{[%emt 00:00:16]} 3. Nc3 {[%clk 01:30:33]} {[%emt 00:00:27]} Nbd7 {[%clk
01:30:13]} {[%emt 00:01:04]} 4. e4 {[%clk 01:30:06]} {[%emt 00:00:58]} e5
{[%clk 01:30:24]} {[%emt 00:00:19]} 5. h3 {[%clk 01:03:45]} {[%emt 00:26:50]}
exd4 {[%clk 01:28:26]} {[%emt 00:02:28]} 6. Nxd4 {[%clk 01:03:33]} {[%emt
00:00:42]} Nc5 {[%clk 01:26:06]} {[%emt 00:02:50]} 7. Bd3 {[%clk 01:02:12]}
{[%emt 00:01:51]} Be7 {[%clk 01:25:40]} {[%emt 00:00:54]} 8. Be3 {[%clk
01:02:07]} {[%emt 00:00:36]} O-O {[%clk 01:23:57]} {[%emt 00:02:13]} 9. Qd2
{[%clk 00:58:50]} {[%emt 00:03:47]} a6 {[%clk 01:18:58]} {[%emt 00:05:30]} 10.
O-O-O {[%clk 00:57:24]} {[%emt 00:01:55]} Nxd3+ {[%clk 01:16:47]} {[%emt
00:02:41]} 11. Qxd3 {[%clk 00:57:35]} {[%emt 00:00:20]} c5 {[%clk 01:00:03]}
{[%emt 00:17:13]} 12. Nf5 {[%clk 00:56:59]} {[%emt 00:01:06]} Bxf5 {[%clk
01:00:17]} {[%emt 00:00:17]} 13. exf5 {[%clk 00:57:25]} {[%emt 00:00:03]} b5
{[%clk 00:59:10]} {[%emt 00:01:37]} 14. Nd5 {[%clk 00:55:54]} {[%emt 00:02:01]}
Nxd5 {[%clk 00:55:58]} {[%emt 00:03:43]} 15. Qxd5 {[%clk 00:56:17]} {[%emt
00:00:06]} Qa5 {[%clk 00:55:19]} {[%emt 00:01:09]} 16. Rhe1 {[%clk 00:55:13]}
{[%emt 00:01:34]} Bf6 {[%clk 00:48:41]} {[%emt 00:07:08]} 17. g4 {[%clk
00:48:10]} {[%emt 00:07:34]} h6 {[%clk 00:46:35]} {[%emt 00:02:36]} 18. f4
{[%clk 00:14:33]} {[%emt 00:34:07]} c4 {[%clk 00:24:57]} {[%emt 00:22:07]} 19.
g5 {[%clk 00:06:27]} {[%emt 00:08:36]} hxg5 {[%clk 00:24:40]} {[%emt 00:00:47]}
20. fxg5 {[%clk 00:06:31]} {[%emt 00:00:26]} Be5 {[%clk 00:21:25]} {[%emt
00:03:46]} 21. g6 {[%clk 00:05:39]} {[%emt 00:01:22]} Qxa2 {[%clk 00:21:19]}
{[%emt 00:00:35]} 22. gxf7+ {[%clk 00:06:04]} {[%emt 00:00:05]} Kh8 {[%clk
00:21:29]} {[%emt 00:00:17]} 23. Rd4 {[%clk 00:05:03]} {[%emt 00:01:34]} Qa1+
{[%clk 00:18:28]} {[%emt 00:03:31]} 24. Kd2 {[%clk 00:05:29]} {[%emt 00:00:04]}
Qa5+ {[%clk 00:17:57]} {[%emt 00:01:01]} 25. c3 {[%clk 00:05:34]} {[%emt
00:00:25]} Bxd4 {[%clk 00:17:57]} {[%emt 00:00:30]} 26. Bxd4 {[%clk 00:05:57]}
{[%emt 00:00:07]} Qc7 {[%clk 00:17:42]} {[%emt 00:00:45]} 27. Qxa8 {[%clk
00:05:22]} {[%emt 00:01:06]} 1-0

[Event "2. Itzehoer Schach Open"]
[Site "Itzehoe, Germany"]
[Date "2023.04.29"]
[Round "1.26"]
[White "Schulze, Tim"]
[Black "Graf, David"]
[Result "1/2-1/2"]
[TimeControl "90 min / 40 Züge + 30 min + 30 Sek pro Zug"]
[WhiteElo "1663"]
[BlackElo "1429"]

1. d4 {[%clk 01:30:41]} {[%emt 00:00:19]} Nf6 {[%clk 01:30:52]} {[%emt
00:00:08]} 2. c4 {[%clk 01:31:08]} {[%emt 00:00:04]} e6 {[%clk 01:31:18]}
{[%emt 00:00:04]} 3. Nf3 {[%clk 01:31:35]} {[%emt 00:00:03]} b6 {[%clk
01:31:34]} {[%emt 00:00:13]} 4. a3 {[%clk 01:31:57]} {[%emt 00:00:08]} Bb7
{[%clk 01:31:02]} {[%emt 00:01:03]} 5. Nc3 {[%clk 01:32:25]} {[%emt 00:00:02]}
Ne4 {[%clk 01:28:55]} {[%emt 00:02:36]} 6. Qc2 {[%clk 01:24:10]} {[%emt
00:08:45]} f5 {[%clk 01:29:17]} {[%emt 00:00:08]} 7. e3 {[%clk 01:23:04]}
{[%emt 00:01:36]} Be7 {[%clk 01:27:07]} {[%emt 00:02:41]} 8. Be2 {[%clk
01:23:24]} {[%emt 00:00:09]} O-O {[%clk 01:27:12]} {[%emt 00:00:25]} 9. O-O
{[%clk 01:22:17]} {[%emt 00:01:36]} d6 {[%clk 01:22:50]} {[%emt 00:04:53]} 10.
Rd1 {[%clk 01:18:58]} {[%emt 00:03:49]} Bf6 {[%clk 01:06:40]} {[%emt 00:16:40]}
11. b4 {[%clk 01:08:09]} {[%emt 00:11:19]} Nd7 {[%clk 01:01:46]} {[%emt
00:05:24]} 12. Bb2 {[%clk 01:07:56]} {[%emt 00:00:43]} Qe7 {[%clk 00:57:29]}
{[%emt 00:04:47]} 13. d5 {[%clk 01:05:47]} {[%emt 00:02:38]} Nxc3 {[%clk
00:54:12]} {[%emt 00:03:47]} 14. Bxc3 {[%clk 01:05:55]} {[%emt 00:00:23]} Bxc3
{[%clk 00:54:35]} {[%emt 00:00:08]} 15. Qxc3 {[%clk 01:06:16]} {[%emt
00:00:08]} e5 {[%clk 00:54:36]} {[%emt 00:00:28]} 16. Rac1 {[%clk 01:03:45]}
{[%emt 00:03:02]} a5 {[%clk 00:46:39]} {[%emt 00:08:28]} 17. Ne1 {[%clk
00:59:59]} {[%emt 00:04:15]} axb4 {[%clk 00:45:39]} {[%emt 00:01:30]} 18. axb4
{[%clk 01:00:27]} {[%emt 00:00:02]} Ra2 {[%clk 00:40:44]} {[%emt 00:05:24]} 19.
Rc2 {[%clk 00:57:43]} {[%emt 00:03:14]} Rxc2 {[%clk 00:38:11]} {[%emt
00:03:03]} 20. Qxc2 {[%clk 00:58:12]} {[%emt 00:00:02]} e4 {[%clk 00:30:13]}
{[%emt 00:08:28]} 21. Ra1 {[%clk 00:56:35]} {[%emt 00:02:07]} Ra8 {[%clk
00:21:55]} {[%emt 00:08:49]} 22. Rxa8+ {[%clk 00:55:35]} {[%emt 00:01:29]} Bxa8
{[%clk 00:22:19]} {[%emt 00:00:08]} 23. Qa2 {[%clk 00:55:54]} {[%emt 00:00:08]}
Qd8 {[%clk 00:22:04]} {[%emt 00:00:47]} 24. Nc2 {[%clk 00:56:03]} {[%emt
00:00:21]} g6 {[%clk 00:17:43]} {[%emt 00:04:50]} 25. Nd4 {[%clk 00:55:57]}
{[%emt 00:00:36]} Nf8 {[%clk 00:17:41]} {[%emt 00:00:33]} 26. h4 {[%clk
00:55:29]} {[%emt 00:00:58]} Bb7 {[%clk 00:14:51]} {[%emt 00:03:20]} 27. h5
{[%clk 00:55:36]} {[%emt 00:00:23]} Kf7 {[%clk 00:13:50]} {[%emt 00:01:31]} 28.
hxg6+ {[%clk 00:55:13]} {[%emt 00:00:52]} hxg6 {[%clk 00:14:15]} {[%emt
00:00:05]} 29. Qa7 {[%emt 00:05:18]} Qa8 {[%clk 00:10:44]} 30. Qxa8 {[%clk
00:54:38]} {[%emt 00:00:18]} Bxa8 {[%clk 00:11:11]} {[%emt 00:00:04]} 31. Nb5
{[%clk 00:54:56]} {[%emt 00:00:12]} Ke7 {[%clk 00:05:32]} {[%emt 00:06:09]} 32.
Nxc7 {[%clk 00:54:01]} {[%emt 00:01:24]} Bb7 {[%clk 00:06:01]} 33. g4 {[%clk
00:50:29]} {[%emt 00:04:01]} Bc8 {[%clk 00:04:32]} {[%emt 00:02:01]} 34. gxf5
{[%clk 00:45:35]} {[%emt 00:05:23]} gxf5 {[%clk 00:04:43]} {[%emt 00:00:19]} 35.
Kg2 {[%clk 00:44:27]} {[%emt 00:01:36]} Ng6 {[%clk 00:03:20]} {[%emt 00:01:54]}
36. Na8 {[%clk 00:42:30]} {[%emt 00:02:28]} b5 {[%clk 00:02:25]} {[%emt
00:01:25]} 37. Nb6 {[%clk 00:42:42]} {[%emt 00:00:17]} Bb7 {[%clk 00:01:21]}
{[%emt 00:01:35]} 38. cxb5 {[%clk 00:42:56]} {[%emt 00:00:15]} Kd8 {[%clk
00:00:57]} {[%emt 00:00:55]} 39. Nc4 {[%clk 00:35:47]} {[%emt 00:07:39]} Kc7
{[%clk 00:01:23]} {[%emt 00:00:04]} 40. Bh5 {[%clk 00:34:30]} {[%emt 00:01:47]}
Ne7 {[%clk 00:00:52]} {[%emt 00:01:02]} 41. b6+ {[%clk 00:32:50]} {[%emt
00:02:10]} Kd7 {[%clk 00:00:50]} {[%emt 00:00:31]} 42. Be8+ {[%clk 00:30:52]}
{[%emt 00:02:28]} Kxe8 {[%clk 00:28:56]} {[%emt 00:02:25]} 43. Nxd6+ {[%clk
01:01:20]} {[%emt 00:00:02]} Kd7 {[%clk 00:28:02]} {[%emt 00:01:24]} 44. Nxb7
{[%clk 01:01:48]} {[%emt 00:00:03]} Nxd5 {[%clk 00:27:50]} {[%emt 00:00:41]} 45.
Nc5+ {[%clk 01:01:53]} {[%emt 00:00:24]} Kc6 {[%clk 00:25:35]} {[%emt
00:02:45]} 46. b7 {[%clk 01:01:13]} {[%emt 00:01:11]} Kc7 {[%clk 00:25:58]}
{[%emt 00:00:07]} 47. b5 {[%clk 01:00:08]} {[%emt 00:01:34]} Nb4 {[%clk
00:20:11]} {[%emt 00:06:18]} 48. b6+ {[%clk 00:58:47]} {[%emt 00:01:51]} Kb8
{[%clk 00:20:24]} {[%emt 00:00:17]} 49. Kg3 {[%clk 00:58:06]} {[%emt 00:01:10]}
Nd3 {[%clk 00:18:47]} {[%emt 00:02:07]} 50. Nxd3 {[%clk 00:58:13]} {[%emt
00:00:23]} exd3 {[%clk 00:19:11]} {[%emt 00:00:06]} 51. Kf3 {[%clk 00:58:42]}
{[%emt 00:00:01]} Kxb7 {[%clk 00:19:06]} {[%emt 00:00:36]} 52. e4 {[%clk
00:57:40]} {[%emt 00:01:32]} fxe4+ {[%clk 00:18:48]} {[%emt 00:00:47]} 53. Ke3
{[%clk 00:58:08]} {[%emt 00:00:02]} Kxb6 {[%clk 00:18:40]} {[%emt 00:00:39]} 54.
f3 {[%clk 00:58:36]} {[%emt 00:00:01]} exf3 {[%clk 00:18:25]} {[%emt 00:00:45]}
55. Kxd3 {[%clk 00:59:04]} {[%emt 00:00:03]} Kc5 {[%clk 00:18:42]} {[%emt
00:00:13]} 56. Ke3 {[%clk 00:59:32]} {[%emt 00:00:01]} Kb6 {[%clk 00:19:11]}
{[%emt 00:00:02]} 57. Kxf3 {[%clk 01:00:01]} {[%emt 00:00:01]} 1/2-1/2

[Event "2. Itzehoer Schach Open"]
[Site "Itzehoe, Germany"]
[Date "2023.04.29"]
[Round "1.27"]
[White "Moeller, Rainer"]
[Black "Stiller, Maximilian"]
[Result "0-1"]
[TimeControl "90 min / 40 Züge + 30 min + 30 Sek pro Zug"]
[WhiteElo "1414"]
[BlackElo "1657"]

1. e4 {[%clk 01:30:55]} {[%emt 00:00:04]} c6 {[%clk 01:30:50]} {[%emt
00:00:12]} 2. d4 {[%clk 01:31:17]} {[%emt 00:00:08]} d5 {[%clk 01:31:12]}
{[%emt 00:00:07]} 3. Nc3 {[%clk 01:31:26]} {[%emt 00:00:20]} dxe4 {[%clk
01:31:34]} {[%emt 00:00:09]} 4. Nxe4 {[%clk 01:31:41]} {[%emt 00:00:14]} Nd7
{[%clk 01:31:52]} {[%emt 00:00:12]} 5. Nf3 {[%clk 01:31:26]} {[%emt 00:00:46]}
Ngf6 {[%clk 01:32:13]} {[%emt 00:00:09]} 6. Bd3 {[%clk 01:27:06]} {[%emt
00:04:50]} Nxe4 {[%clk 01:32:14]} {[%emt 00:00:29]} 7. Bxe4 {[%clk 01:27:27]}
{[%emt 00:00:09]} Nf6 {[%clk 01:32:37]} {[%emt 00:00:07]} 8. Qd3 {[%clk
01:24:09]} {[%emt 00:03:48]} Bg4 {[%clk 01:30:09]} {[%emt 00:02:57]} 9. c3
{[%clk 01:21:25]} {[%emt 00:03:14]} e6 {[%clk 01:30:02]} {[%emt 00:00:37]} 10.
O-O {[%clk 01:20:28]} {[%emt 00:01:27]} Bd6 {[%clk 01:29:48]} {[%emt 00:00:45]}
11. h3 {[%clk 01:14:38]} {[%emt 00:06:19]} Nxe4 {[%clk 01:28:49]} {[%emt
00:01:29]} 12. Qxe4 {[%clk 01:12:37]} {[%emt 00:02:30]} Bf5 {[%clk 01:29:10]}
{[%emt 00:00:10]} 13. Qe2 {[%clk 01:09:21]} {[%emt 00:03:46]} O-O {[%clk
01:27:10]} {[%emt 00:02:30]} 14. Re1 {[%clk 01:00:50]} {[%emt 00:09:01]} Rc8
{[%clk 01:21:40]} {[%emt 00:06:00]} 15. Ne5 {[%clk 00:49:22]} {[%emt 00:11:56]}
f6 {[%clk 01:20:52]} {[%emt 00:01:20]} 16. Nc4 {[%clk 00:49:00]} {[%emt
00:00:53]} Bb8 {[%clk 01:20:25]} {[%emt 00:00:56]} 17. Ne3 {[%clk 00:47:13]}
{[%emt 00:02:17]} Qc7 {[%clk 01:19:24]} {[%emt 00:01:31]} 18. Nf1 {[%clk
00:42:07]} {[%emt 00:05:36]} Rfe8 {[%clk 01:14:32]} {[%emt 00:05:22]} 19. Qf3
{[%clk 00:39:02]} {[%emt 00:03:32]} Bg6 {[%clk 01:12:35]} {[%emt 00:02:30]} 20.
Bd2 {[%clk 00:35:13]} {[%emt 00:04:19]} Qb6 {[%clk 01:09:06]} {[%emt 00:04:00]}
21. b3 {[%clk 00:34:07]} {[%emt 00:01:36]} e5 {[%clk 01:08:39]} {[%emt
00:00:57]} 22. dxe5 {[%clk 00:28:41]} {[%emt 00:05:56]} Bxe5 {[%clk 01:06:41]}
{[%emt 00:02:27]} 23. Bf4 {[%clk 00:23:34]} {[%emt 00:05:36]} Qa5 {[%clk
01:05:01]} {[%emt 00:02:10]} 24. Bxe5 {[%clk 00:23:33]} {[%emt 00:00:32]} Rxe5
{[%clk 01:05:19]} {[%emt 00:00:12]} 25. Rxe5 {[%clk 00:23:25]} {[%emt
00:00:37]} Qxe5 {[%clk 01:05:36]} {[%emt 00:00:11]} 26. Qe3 {[%clk 00:22:12]}
{[%emt 00:01:45]} Qc7 {[%clk 01:01:54]} {[%emt 00:04:11]} 27. Rd1 {[%clk
00:21:08]} {[%emt 00:01:34]} Re8 {[%clk 01:01:34]} {[%emt 00:00:51]} 28. Qd4
{[%clk 00:21:09]} {[%emt 00:00:29]} c5 {[%clk 00:47:53]} {[%emt 00:14:11]} 29.
Qd7 {[%clk 00:17:20]} {[%emt 00:04:18]} Qxd7 {[%clk 00:45:00]} {[%emt
00:03:24]} 30. Rxd7 {[%clk 00:17:40]} {[%emt 00:00:09]} Re1 {[%clk 00:45:23]}
{[%emt 00:00:08]} 31. c4 {[%clk 00:14:42]} {[%emt 00:03:29]} Kf8 {[%clk
00:39:12]} {[%emt 00:06:39]} 32. f3 {[%clk 00:14:45]} {[%emt 00:00:28]} Ra1
{[%clk 00:38:02]} {[%emt 00:01:40]} 33. Rd2 {[%clk 00:14:52]} {[%emt 00:00:23]}
Ke7 {[%clk 00:37:03]} {[%emt 00:01:29]} 34. Kf2 {[%clk 00:15:13]} {[%emt
00:00:09]} Bb1 {[%clk 00:36:33]} {[%emt 00:00:59]} 35. Ne3 {[%clk 00:10:27]}
{[%emt 00:05:17]} Rxa2 {[%clk 00:36:14]} {[%emt 00:00:49]} 36. Nd5+ {[%clk
00:09:51]} {[%emt 00:01:06]} Kd6 {[%clk 00:34:27]} {[%emt 00:02:17]} 37. Ke3
{[%clk 00:08:05]} {[%emt 00:02:16]} Rxd2 {[%clk 00:31:08]} {[%emt 00:03:50]} 38.
Kxd2 {[%clk 00:08:28]} {[%emt 00:00:06]} Ke5 {[%clk 00:28:12]} {[%emt
00:03:25]} 39. Kc3 {[%clk 00:06:36]} {[%emt 00:02:23]} Bg6 {[%clk 00:27:08]}
{[%emt 00:01:34]} 40. g4 {[%clk 00:05:12]} {[%emt 00:01:53]} Bf7 {[%clk
00:26:49]} {[%emt 00:00:50]} 41. Ne3 {[%clk 00:21:46]} {[%emt 00:13:56]} Kf4
{[%clk 00:55:06]} {[%emt 00:02:13]} 42. Nf5 {[%clk 00:21:42]} {[%emt 00:00:33]}
Kxf3 {[%clk 00:53:03]} {[%emt 00:02:34]} 43. Nxg7 {[%clk 00:21:44]} {[%emt
00:00:28]} Kg3 {[%clk 00:52:45]} {[%emt 00:00:48]} 44. Nf5 {[%clk 00:20:57]}
{[%emt 00:01:17]} Kxh3 {[%clk 00:52:47]} {[%emt 00:00:28]} 45. Nd6 {[%clk
00:21:05]} {[%emt 00:00:22]} Be6 {[%clk 00:52:19]} {[%emt 00:00:59]} 46. Nxb7
{[%clk 00:21:21]} {[%emt 00:00:14]} Kxg4 {[%clk 00:51:46]} {[%emt 00:01:01]} 47.
Nxc5 {[%clk 00:21:41]} {[%emt 00:00:11]} Bc8 {[%clk 00:51:57]} {[%emt
00:00:18]} 48. Nd3 {[%clk 00:20:47]} {[%emt 00:01:25]} h5 {[%clk 00:52:09]}
{[%emt 00:00:18]} 49. Nf2+ {[%clk 00:17:59]} {[%emt 00:03:18]} Kf3 {[%clk
00:52:10]} {[%emt 00:00:29]} 0-1

[Event "2. Itzehoer Schach Open"]
[Site "Itzehoe, Germany"]
[Date "2023.04.29"]
[Round "1.24"]
[White "Wibmer, Michael"]
[Black "Brandt, Volker"]
[Result "1-0"]
[TimeControl "90 min / 40 Züge + 30 min + 30 Sek pro Zug"]
[WhiteElo "1675"]
[BlackElo "1469"]

1. e4 {[%clk 01:30:45]} {[%emt 00:00:14]} e5 {[%clk 01:30:54]} {[%emt
00:00:07]} 2. Nf3 {[%clk 01:31:04]} {[%emt 00:00:11]} d5 {[%clk 01:31:18]}
{[%emt 00:00:06]} 3. exd5 {[%clk 01:28:40]} {[%emt 00:02:55]} Bd6 {[%clk
01:31:41]} {[%emt 00:00:07]} 4. Bb5+ {[%clk 01:22:57]} {[%emt 00:06:13]} Nd7
{[%clk 01:31:30]} {[%emt 00:00:40]} 5. Nc3 {[%clk 01:22:00]} {[%emt 00:01:28]}
a6 {[%clk 01:31:53]} {[%emt 00:00:08]} 6. Ba4 {[%clk 01:19:48]} {[%emt
00:02:40]} f5 {[%clk 01:31:00]} {[%emt 00:01:23]} 7. d3 {[%clk 01:15:28]}
{[%emt 00:04:51]} Ngf6 {[%clk 01:31:16]} {[%emt 00:00:14]} 8. Ng5 {[%clk
01:05:50]} {[%emt 00:10:07]} b5 {[%clk 01:28:57]} {[%emt 00:02:50]} 9. Bb3
{[%clk 01:00:42]} {[%emt 00:05:37]} Qe7 {[%clk 01:24:33]} {[%emt 00:04:54]} 10.
Ne6 {[%clk 00:56:04]} {[%emt 00:05:08]} Nc5 {[%clk 01:17:02]} {[%emt 00:08:02]}
11. Qf3 {[%clk 00:49:14]} {[%emt 00:07:19]} Bxe6 {[%clk 01:13:26]} {[%emt
00:04:06]} 12. dxe6 {[%clk 00:48:43]} {[%emt 00:01:02]} O-O {[%clk 01:13:45]}
{[%emt 00:00:11]} 13. Nd5 {[%clk 00:35:51]} {[%emt 00:13:21]} Nxd5 {[%clk
01:08:49]} {[%emt 00:05:26]} 14. Bxd5 {[%clk 00:33:42]} {[%emt 00:02:39]} e4
{[%clk 01:06:12]} {[%emt 00:03:07]} 15. dxe4 {[%clk 00:31:24]} {[%emt
00:02:48]} fxe4 {[%clk 01:06:12]} {[%emt 00:00:31]} 16. Qg4 {[%clk 00:30:41]}
{[%emt 00:01:10]} Nxe6 {[%clk 00:56:57]} {[%emt 00:09:47]} 17. Qxe6+ {[%clk
00:28:59]} {[%emt 00:02:13]} Ra7 {[%emt 00:00:40]} 1-0